Cogmind - Beta 10.2 @@@ ROGUE MODE // 2021.08.31 @ 20:05:31 Player: cavemonk Result: Destroyed by DAS Turret with DAS Cannon Performance ------------- Evolutions (0) 0 Regions Visited (3) 600 Robots Destroyed (1) 5 Value Destroyed (10) 10 Prototype IDs (23) 460 Alien Tech Used (0) 0 Bonus (-195) -195 TOTAL SCORE: 880 Bonus ------- Aligned with FarCom 300 Friendly Fire -495 Cogmind --------- Core Integrity 0/250 Matter 227/300 Energy 99/100 System Corruption 1% Temperature Cool (0) Movement Core (50) Location -10/Exiles Parts ------- > --- POWER (1) -------- (None) > --- PROPULSION (2) --- (None) > --- UTILITY (2) ------ (None) > --- WEAPON (2) ------- Longsword +1 > --- INVENTORY (4) ---- Medium Storage Unit AWS/Autocannon Peak State ------------ > --- POWER ------------ (None) > --- PROPULSION ------- (None) > --- UTILITY ---------- PSU Rigger > --- WEAPON ----------- Longsword +1 > --- INVENTORY -------- AWS/Autocannon [Rating: 19] Favorites ----------- Power Light Ion Engine Engine Light Ion Engine Propulsion Light Treads Treads Light Treads Leg Aluminum Leg Utility PSU Rigger Device PSU Rigger Storage Small Storage Unit Weapon Longsword +1 Energy Gun Small Laser Ballistic Gun Light Assault Rifle Launcher Rocket Launcher Slashing Weapon Longsword +1 Build | -11 -10 -10 -10 ------- Run | Scr Mat Min Exi Slots Evolved . | . . . . Power . | . . . . Propulsion . | . . . . Utility . | . . . . Weapon . | . . . . Parts Attached 5 | . 1 1 3 Power . | . . . . Engine . | . . . . Core . | . . . . Reactor . | . . . . Propulsion 1 | . 1 . . Treads 1 | . 1 . . Leg . | . . . . Wheel . | . . . . Hover . | . . . . Flight . | . . . . Utility 1 | . . . 1 Device 1 | . . . 1 Storage . | . . . . Processor . | . . . . Hackware . | . . . . Protection . | . . . . Artifact . | . . . . Weapon 3 | . . 1 2 Energy Gun . | . . . . Energy Cannon . | . . . . Ballistic Gun . | . . . . Ballistic Cannon . | . . . . Launcher 1 | . . 1 . Special Weapon . | . . . . Impact Weapon . | . . . . Slashing Weapon 2 | . . . 2 Piercing Weapon . | . . . . Special Melee Weapon . | . . . . Unidentified Prototypes . | . . . . Parts Lost 2 | . . 2 . Power . | . . . . Propulsion 1 | . . 1 . Utility . | . . . . Weapon 1 | . . 1 . Highest Loss Streak 2 | . . 2 . Average Slot Usage (%) 6 | . 6 4 7 Treads 2 | . 6 3 . Device 2 | . . . 4 Slashing Weapon 1 | . . . 2 Naked Turns 213 | . 43 98 72 Heaviest Build 9 | 9 . . 3 Greatest Support 20 | 20 3 3 3 Greatest Overweight (x) . | . . . . Average Overweight (x) . | . . . . Largest Inventory Capacity 6 | 6 4 4 4 Average Capacity 4 | 5 4 4 4 Most Carried 6 | 6 4 4 4 Average Carried 3 | 5 3 3 3 Final Capacity 4 | 4 4 4 4 Final Carried 4 | 4 3 3 4 Class Distribution -------------------- 100% | Mutant Dominant Class ---------------- Mutant | -10/Materials Mutant | -10/Mines Mutant | -10/Exiles Resources | -11 -10 -10 -10 ----------- Run | Scr Mat Min Exi Matter Collected 200 | 200 . . . Remotely . | . . . . Salvage Created . | . . . . Parts 1 | . . 1 . Haulers Intercepted . | . . . . Recyclers Shooed . | . . . . Parts Field Recycled . | . . . . Retrieved Matter . | . . . . Parts Self-Destructed . | . . . . Prevented . | . . . . Kills | -11 -10 -10 -10 ------- Run | Scr Mat Min Exi Combat Hostiles Destroyed 1 | . . 1 . AOE 1 | . . 1 . Classes Destroyed 1 | . . 1 . Swarmer 1 | . . 1 . Best Kill Streak 1 | . . 1 . Combat Bots Only 1 | . . 1 . Max Kills in Single Turn 1 | . . 1 . Gunslinging . | . . . . Exploded 1 | . . 1 . Melee . | . . . . Uniques/NPCs Destroyed . | . . . . Combat | -11 -10 -10 -10 -------- Run | Scr Mat Min Exi Damage Taken 482 | . . 368 114 Core 268 | . . 154 114 Absorbed by Shields . | . . . . Core Remaining (%) 100 | 100 . . . Volleys Fired 3 | . . 3 . Largest 1 | . . 1 . Hottest 33 | . . 33 . Shots Fired 3 | . . 3 . Gun . | . . . . Cannon . | . . . . Launcher 3 | . . 3 . Special . | . . . . Kinetic . | . . . . Thermal . | . . . . Explosive 3 | . . 3 . Electromagnetic . | . . . . Robot Hit Streak 2 | . . 2 . Robot Miss Streak . | . . . . Penetration Max . | . . . . Secondary Targets . | . . . . Shots Hit Robots 3 | . . 2 1 Core Hits 2 | . . 2 . Critical Hits . | . . . . Critical Kills . | . . . . Critical Parts Destroyed . | . . . . Melee Attacks 1 | . . . 1 Impact . | . . . . Slashing 1 | . . . 1 Piercing . | . . . . Sneak Attacks 1 | . . . 1 Combat Hostiles . | . . . . Follow-up Attacks . | . . . . Damage Inflicted 262 | . . 97 165 Guns . | . . . . Cannons . | . . . . Explosions 97 | . . 97 . Melee 165 | . . . 165 Ramming . | . . . . Kinetic . | . . . . Thermal . | . . . . Explosive 97 | . . 97 . Electromagnetic . | . . . . Impact . | . . . . Slashing 165 | . . . 165 Piercing . | . . . . Highest Corruption 1 | . . . 1 Average Corruption 1 | . . . 1 Corruption Purged . | . . . . Overload Shots . | . . . . Overflow Damage 23 | . . 23 . Projectiles . | . . . . Explosions 23 | . . 23 . Melee . | . . . . Knockbacks . | . . . . Impact . | . . . . Kinetic . | . . . . Secondary . | . . . . Self-Inflicted Damage 109 | . . 109 . Shots 3 | . . 3 . Rammed . | . . . . Targets Rammed . | . . . . Kicked . | . . . . Crushed . | . . . . Highest Temperature 7 | . . 7 . Average Temperature 7 | . . 7 . Received Heat Transfer 27 | . . 27 . Siege Activations . | . . . . Robots Corrupted . | . . . . Combat Hostiles . | . . . . Parts Fried . | . . . . Impact Corruptions . | . . . . Robots Melted . | . . . . Combat Hostiles . | . . . . Parts Melted . | . . . . Heat Transferred . | . . . . Parts Sabotaged . | . . . . Parts Stolen . | . . . . Parts Stripped . | . . . . Power Chain Reactions . | . . . . Missiles Intercepted . | . . . . Alert | -11 -10 -10 -10 ------- Run | Scr Mat Min Exi Peak Influence 62 | . 7 62 . Initial 2 | . . 2 . Average 15 | . 1 23 . Maximum Alert Level . | . . . . Low Security (%) 100 | 100 100 100 . Level 1 . | . . . . Level 2 . | . . . . Level 3 . | . . . . Level 4 . | . . . . Level 5 . | . . . . High Security . | . . . . Max Security . | . . . . Squads Dispatched . | . . . . Investigation . | . . . . Extermination . | . . . . Reinforcement . | . . . . Assault . | . . . . Garrison . | . . . . Intercept . | . . . . Construction Impeded . | . . . . Haulers Reinforced . | . . . . Stealth | -11 -10 -10 -10 --------- Run | Scr Mat Min Exi Distress Signals . | . . . . Communications Jammed . | . . . . Distress Signals . | . . . . Times Spotted 9 | . 2 6 1 Peak Tracking Total 3 | . 2 3 2 Tactical Retreats 2 | . . 2 . Traps | -11 -10 -10 -10 ------- Run | Scr Mat Min Exi Traps Triggered . | . . . . Indirectly . | . . . . Trap Hack Attempts . | . . . . Triggered . | . . . . Disarmed . | . . . . Reprogrammed . | . . . . Reused . | . . . . Traps Extracted . | . . . . Installed . | . . . . Triggered . | . . . . Machines | -11 -10 -10 -10 ---------- Run | Scr Mat Min Exi Machines Disabled . | . . . . Max in Single Turn . | . . . . Machines Sabotaged . | . . . . Garrisons Compromised . | . . . . Overloaded Fab Kills . | . . . . Fab Network Shutdowns . | . . . . Hacking | -11 -10 -10 -10 --------- Run | Scr Mat Min Exi Machines Accessed 2 | . 1 . 1 Terminals 1 | . 1 . . Fabricators . | . . . . Repair Stations . | . . . . Recycling Units . | . . . . Scanalyzers . | . . . . Garrison Access . | . . . . Total Hacks 5 | . 4 . 1 Successful 2 | . 1 . 1 Failed 3 | . 3 . . Catastrophic 1 | . 1 . . Database Lockouts . | . . . . Manual 5 | . 4 . 1 Terminals 4 | . 4 . . Fabricators . | . . . . Repair Stations . | . . . . Recycling Units . | . . . . Scanalyzers . | . . . . Garrison Access . | . . . . Terminal Hacks 2 | . 1 . 1 Part Schematic 1 | . 1 . . EX-Prototype ID Bank 1 | . . . 1 Fabricator Hacks . | . . . . Repair Station Hacks . | . . . . Recycling Unit Hacks . | . . . . Scanalyzer . | . . . . Garrison Access Hacks . | . . . . Unauthorized Hacks . | . . . . Terminals . | . . . . Fabricators . | . . . . Repair Stations . | . . . . Recycling Units . | . . . . Scanalyzers . | . . . . Garrison Access . | . . . . Data Cores Recovered . | . . . . Used . | . . . . Hacking Detections 1 | . 1 . . Full Trace Events . | . . . . Feedback Events . | . . . . Feedback Blocked . | . . . . Robot Schematics Acquired . | . . . . Robots Built . | . . . . Matter . | . . . . Time . | . . . . Total Robot Build Rating . | . . . . Part Schematics Acquired 1 | . 1 . . Parts Built . | . . . . Matter . | . . . . Time . | . . . . Total Part Build Rating . | . . . . Parts Repaired . | . . . . Time . | . . . . Parts Recycled . | . . . . Recycled Matter . | . . . . Retrieved Matter . | . . . . Retrieved Components . | . . . . Parts Scanalyzed . | . . . . Part Schematics Acquired . | . . . . Parts Damaged . | . . . . Bothacking | -11 -10 -10 -10 ------------ Run | Scr Mat Min Exi Used RIF Installer . | . . . . Robots Hacked . | . . . . Non-combat . | . . . . Combat . | . . . . Robot Hacks Applied . | . . . . Relay Couplers Released . | . . . . Robots Rewired . | . . . . Allies Hacked . | . . . . Hacks Repelled . | . . . . Allies | -11 -10 -10 -10 -------- Run | Scr Mat Min Exi Total Allies . | . . . . Largest Group . | . . . . Highest-Rated Group . | . . . . Highest-Rated Ally . | . . . . Total Orders . | . . . . Ally Attacks . | . . . . Total Damage . | . . . . Kills . | . . . . Allies Corrupted . | . . . . Allies Melted . | . . . . Intel | -11 -10 -10 -10 ------- Run | Scr Mat Min Exi Robot Analysis Total . | . . . . Derelict Logs Recovered 3 | . . 3 . Drone Launches . | . . . . Drone Recoveries . | . . . . Exploration | -11 -10 -10 -10 ------------- Run | Scr Mat Min Exi Turns Passed 356 | 3 69 132 152 Spaces Moved 650 | 4 132 248 266 Core 649 | 3 132 248 266 Treads . | . . . . Legs 1 | 1 . . . Wheels . | . . . . Hover . | . . . . Flight . | . . . . Fastest Speed 50 | 50 50 50 50 Average Speed 50 | 67 50 50 50 Slowest Speed 120 | 120 50 50 50 Overloaded Moves . | . . . . Propulsion Burnouts . | . . . . Robots Hopped . | . . . . Cave-ins Triggered . | . . . . Exploration Rate (%) 40 | 1 33 68 61 Regions Visited 3 Branch Regions 2 Pre-discovered Areas 3 | . . 3 . Known Exits Taken . | . . . . Unknown Exits Taken 3 | 1 1 1 . Scrap Searched . | . . . . Spaces Dug . | . . . . Terrain Destroyed 32 | . . 32 . Melee . | . . . . Projectile . | . . . . AOE 32 | . . 32 . Terrain Rammed . | . . . . Walls Destroyed . | . . . . Machines Disabled . | . . . . Actions | -11 -10 -10 -10 --------- Run | Scr Mat Min Exi Total 676 | 3 134 252 287 Wait 3 | . . . 3 Move 647 | 3 131 247 266 Hop . | . . . . Pick Up 8 | . 1 1 6 Fast Attach 1 | . . . 1 Attach 4 | . 1 1 2 Detach 1 | . . . 1 Swap . | . . . . Drop 8 | . 1 . 7 Fire 3 | . . 3 . Melee 1 | . . . 1 Ram . | . . . . Kick . | . . . . Crush . | . . . . Escape Stasis . | . . . . Rewire . | . . . . Trap . | . . . . Miscellaneous . | . . . . Route ------- -11/Scrapyard -10/Materials (discovered 2 exits: [*Mat] / [*Min]) -10/Mines (discovered 3 exits: [*Mat x2] / *Exi) -10/Exiles (discovered 1 exit: [*Min]) History --------- Turn | Location | Event 1 | -11/Scrapyard | Discovered new exit (range 1) 3 | -11/Scrapyard | Released all parts (6) 4 | -11/Scrapyard | Entered Materials 24 | -10/Materials | Discovered new exit (range 14) 67 | -10/Materials | Discovered new exit (range 13) 73 | -10/Materials | Entered Mines 78 | -10/Mines | Learned location of Zion (-7) 92 | -10/Mines | Received a Rocket Launcher from a helpful Derelict 115 | -10/Mines | Discovered new exit (range 13) 134 | -10/Mines | Discovered new exit (range 5) 140 | -10/Mines | Core integrity fell below 50% 203 | -10/Mines | Deemed a non-threat by the Exiles lab entrance 203 | -10/Mines | Discovered new exit (range 5) 205 | -10/Mines | Entered Exiles 225 | -10/Exiles | Met 8R-AWN 233 | -10/Exiles | Met EX-HEX 246 | -10/Exiles | Met EX-BIN 253 | -10/Exiles | Aligned with FarCom system 253 | -10/Exiles | Given EX-Vault access code 265 | -10/Exiles | Opened EX-Vault 271 | -10/Exiles | Found AWS/Autocannon 275 | -10/Exiles | Found Longsword +1 277 | -10/Exiles | Found PSU Rigger 289 | -10/Exiles | Warned to stay clear of 0b10 Research branches 291 | -10/Exiles | Exiles lab attacked by MAIN.C 346 | -10/Exiles | Discovered new exit (range 10) 348 | -10/Exiles | Build established: Mutant 355 | -10/Exiles | Attacked by the Exiles 357 | -10/Exiles | Core integrity fell below 20% 357 | -10/Exiles | Destroyed by DAS Turret with DAS Cannon Last Messages --------------- 00275_ Acquired Longsword +1. 00277_ Acquired PSU Rigger. EX-BIN: Oh yeah, I'd suggest you stay away from the 0b10 Research branches, since the FarCom signals could be picked up there, but you're welcome to try if you really want to. And if we have to leave here due to unforeseen circumstances, don't worry the FarCom system will continue to maintain contact via our distributed network. 00291_ EXILES: Incoming Unaware force detected on approach from Mines. Prepare for evacuation. 00326_ EXILES: Lab perimeter alert, evacuate immediately. 00327_ Dropped PSU Rigger. 00334_ Acquired Med. Storage Unit. 00346_ EXIT=FOUND 00354_ Sneak attack on EX-DEC. 00355_ EX-BIN: "Not cool, MAIN.C, I don't even have my SDF Cannon ready..." 00355_ EXILES: Additional hostile detected within perimeter. 00357_ EX-DEC: "Let's see what this bad boy can do..." 00357_ EX-DEC deploys DAS Turret. Map ----- +----------------------------------------------------+ | | | | | ?????????????????????????????????????????????? | | ?????????????????????????????????????????????? | | ?????????????????????????????????????????????? | | ?????????????????????????????????????????????? | | ?????????????????????????????????????????????? | | ?????????????????????????????????????????????? | | ?????????????????????????????????????????????? | | ?????????????????????????????????????????????? | | ?????????????????????????????????????????????? | | ?????????????????????????????????????????????? | | ?????????????????????????????????????????????? | | ?????????????????????????????????????????????? | | ?????????????????????????????????????????????? | | ?????????????????????????????????????????????? | | ?????????????????????????????????????????????? | | ?????????????????????????????????????????????? | | ????????????????#####????????????????????????? | | ???????????????## ##???????????????????????? | | ???????????????# #???????????????????????? | | ???????????????# < #???????????????????????? | | ???????????????# ###?????????????????????? | | ???????????????# #?????????????????????? | | ???????????????# ##?????????????????????? | | ???????????????## @#??????????????????????? | | ????????????????# ##?????????????????????? | | ????????????????## #????????????#######??? | | ?????????????????# tc#######??????#! ! "#??? | | ?????????????????# #""##?????# "#??? | | ?????????????????## #?????# "#??? | | ??????????????????##" ##???## ""#??? | | ??????????????????#"" #####" ""#??? | | ??????????????????#### ##" ""#??? | | ?????????????????????## #"" ###??? | | ??????????????????????#"## #????? | | ??????????????????????####### ##???? | | ????????????????????????????### "#???? | | ?????????????????????????#####" ###?? | | ?????????????????????????!"""""! ##? | | ??????????????????????#! "###"" ## | | ??????????????????????#! "#?##" | | ??????????????????????#! ##??#" | | ??????????????????????# !""""""###???#"# | | ??????????????????????#########??????#### | | ????????????????????????????????????????### | | ??????????????????????????????????????????### | | ????????????????????????????????????????????## | | ?????????????????????????????????????????????# | | ?????????????????????????????????????????????? | +----------------------------------------------------+ Best States ------------- Heat Dissipation 25 Energy Generation 5 Energy Capacity 100 Matter Stores 300 Matter Capacity 300 Sight Range 16 Terrain Scan Density 10 Evasion (%) 50 Item Schematics ----------------- Hcp. Storage Unit | -10/Materials | Hacked Robot Schematics ------------------ None Fabricated ------------ Nothing Alien Tech Used ----------------- None Achievements -------------- None Challenges ------------ None Game ------ Seed TransmissionDerelictLeg Manual? 0 Play Time 00:10:12 Cumulative 265.2 hours Start 2021.08.31 @ 19:37:33 End 2021.08.31 @ 20:05:31 Sessions 1 Manual Loads 0 Difficulty Rogue Special Mode None Game No. 189 Rogue 189 Adventurer 0 Explorer 0 Win Type - Total 5 Types 5/0/0/0/0/0/0/0/0 Lore% 51 Gallery% 73 Achievement% 58 Wizard Run 0 Options --------- ASCII 0 Keyboard 0 Movement Numpad Keybinds 0 Fullscreen 0 Font 16/SmallcapsGlow Map View 76x50 Tactical HUD 1 Map Filters NONE Filters NONE Steam 1 RUN: f34a5995-00fb-4075-b277-546f48cccd90